Cogmind - Beta 9.4 --- EXPLORER MODE // 2020.02.15 @ 16:05:46 Player: Xax Result: Destroyed by G-67 Veteran with Plasma Rifle Performance ------------- Evolutions (6) 3000 Regions Visited (10) 2000 Robots Destroyed (217) 1085 Value Destroyed (10882) 10882 Prototype IDs (17) 340 Alien Tech Used (0) 0 Bonus (391) 391 TOTAL SCORE: 17698 Bonus ------- High Alert Combat Kills 29 Follower Combat Kills 428 Friendly Fire -66 Cogmind --------- Core Integrity 0/1150 Matter 293/300 Energy 235/240 System Corruption 5% Temperature Cool (204) Movement Hovering (44) Location -4/Factory Parts ------- > --- POWER (2) -------- Light Antimatter Reactor Light Antimatter Reactor > --- PROPULSION (6) --- Combat Linear Gravjet Combat Linear Gravjet Combat Linear Gravjet Combat Linear Gravjet Combat Linear Gravjet Combat Linear Gravjet > --- UTILITY (10) ----- Experimental Heat Sink Large Storage Unit Large Storage Unit Advanced Target Analyzer Advanced Particle Charger Quantum Capacitor Advanced Focal Shield Improved Force Field System Backup Module > --- WEAPON (2) ------- Long-range Phase Cannon Force Lance > --- INVENTORY (16) --- Light Antimatter Reactor Light Antimatter Reactor Quantum Capacitor Improved Force Field Heavy Disruptor Cannon Heavy Disruptor Cannon Heavy Disruptor Cannon Heavy Gauss Cannon Hypervelocity Mass Driver Heavy Pick Peak State ------------ > --- POWER ------------ Light Antimatter Reactor Light Antimatter Reactor > --- PROPULSION ------- Combat Linear Gravjet Combat Linear Gravjet Combat Linear Gravjet Combat Linear Gravjet Combat Linear Gravjet Combat Linear Gravjet > --- UTILITY ---------- Experimental Heat Sink Large Storage Unit Large Storage Unit Advanced Target Analyzer Advanced Particle Charger Quantum Capacitor Advanced Focal Shield Improved Force Field System Backup Module > --- WEAPON ----------- Long-range Phase Cannon Force Lance > --- INVENTORY -------- Light Antimatter Reactor Light Antimatter Reactor Armored Medium Treads Advanced Medium Treads Quantum Capacitor Improved Force Field Heavy Disruptor Cannon Heavy Disruptor Cannon Heavy Disruptor Cannon Heavy Gauss Cannon Hypervelocity Mass Driver Heavy Pick [Rating: 148] Favorites ----------- Power Light Angular Momentum Engine Engine Light Angular Momentum Engine Power Core Micro Nuclear Core Reactor Light Antimatter Reactor Propulsion Armored Treads Treads Armored Treads Leg Titanium Leg Hover Unit Antigrav System Utility Large Storage Unit Device System Backup Module Storage Large Storage Unit Processor Advanced Melee Analysis Suite Hackware Hacking Suite Protection Improved Heavy Armor Plating Weapon Greatsword Energy Gun Improved EM Shotgun Energy Cannon Heavy Disruptor Cannon Ballistic Gun Hypervelocity Gauss Rifle Ballistic Cannon Magnetic Acceleration Cannon Launcher Missile Launcher Impact Weapon Impact Mace Slashing Weapon Greatsword Piercing Weapon Force Lance Build | -11 -10 -9 -8 -7 -7 -7 -6 -6 -5 -4 ------- Run | Scr Mat Mat Mat Fac Was Fac Fac Ext Fac Fac Slots Evolved 13 | . 1 2 2 2 . . 2 . 2 2 Power 1 | . . . . . . . . . 1 . Propulsion 4 | . . . 1 . . . 1 . . 2 Utility 8 | . 1 2 1 2 . . 1 . 1 . Weapon . | . . . . . . . . . . . Parts Attached 336 | 7 8 13 15 19 13 31 27 54 45 104 Power 32 | 1 1 1 3 2 . 2 1 2 6 13 Engine 16 | 1 1 1 1 1 . 1 1 2 6 1 Core 9 | . . . 2 1 . 1 . . . 5 Reactor 7 | . . . . . . . . . . 7 Propulsion 84 | 3 1 2 3 7 5 9 2 12 17 23 Treads 59 | 2 1 2 3 7 5 4 2 12 11 10 Leg 8 | 1 . . . . . 5 . . . 2 Wheel . | . . . . . . . . . . . Hover 17 | . . . . . . . . . 6 11 Flight . | . . . . . . . . . . . Utility 111 | 2 4 3 1 6 2 14 11 18 8 42 Device 57 | . . 2 . 2 . 9 3 5 6 30 Storage 20 | 1 3 . . 1 1 1 2 7 2 2 Processor 14 | . 1 1 . 1 . . 2 3 . 6 Hackware 4 | . . . . 1 1 . . 1 . 1 Protection 16 | 1 . . 1 1 . 4 4 2 . 3 Artifact . | . . . . . . . . . . . Weapon 109 | 1 2 7 8 4 6 6 13 22 14 26 Energy Gun 17 | 1 1 2 2 2 1 1 1 1 2 3 Energy Cannon 16 | . . 2 1 2 . 2 . . . 9 Ballistic Gun 21 | . 1 . 2 . . 1 2 5 5 5 Ballistic Cannon 8 | . . 1 . . 2 . . 1 4 . Launcher 25 | . . 2 3 . 3 . 5 8 1 3 Special Weapon . | . . . . . . . . . . . Impact Weapon 3 | . . . . . . 1 . . 2 . Slashing Weapon 16 | . . . . . . 1 5 7 . 3 Piercing Weapon 3 | . . . . . . . . . . 3 Special Melee Weapon . | . . . . . . . . . . . Unidentified Prototypes 11 | . . . 1 . . . 3 . 1 6 Parts Lost 70 | . . 2 4 2 7 . 3 12 11 29 Power 8 | . . . 2 . . . . 1 2 3 Propulsion 16 | . . . . 1 1 . . 3 6 5 Utility 31 | . . . . . 4 . 2 5 2 18 Weapon 15 | . . 2 2 1 2 . 1 3 1 3 Highest Loss Streak 10 | . . 1 2 1 5 . 1 9 10 6 Average Slot Usage (%) 88 | . 99 99 99 99 31 84 88 92 95 79 Engine 4 | . 12 10 4 1 . 3 6 5 10 . Core 1 | . . . 2 5 1 3 . . . 3 Reactor 1 | . . . . . . . . . . 5 Treads 17 | . 24 20 25 20 5 3 24 24 18 11 Leg 1 | . . . . . . 13 . . . 1 Hover 1 | . . . . . . . . . 1 4 Device 16 | . . 19 16 13 1 38 19 4 10 21 Storage 15 | . 23 20 16 21 4 2 11 20 27 12 Processor 9 | . 12 10 8 14 9 . 7 13 11 9 Hackware 1 | . . . . . 4 . . 4 4 . Protection 4 | . 1 . 8 6 1 8 10 5 . 2 Energy Gun 2 | . 16 9 2 7 . 1 . . . . Energy Cannon 1 | . . 3 2 4 . 2 . . . 3 Ballistic Gun 2 | . 7 . 1 1 . 3 . 5 3 . Ballistic Cannon 1 | . . 6 1 . . . . . 3 . Launcher 1 | . . . 7 . 1 . 1 2 . . Slashing Weapon 1 | . . . . . . 3 5 2 . . Naked Turns 67 | . . . . . 67 . . . . . Heaviest Build 114 | 16 39 44 51 76 75 39 57 100 114 109 Greatest Support 220 | 40 40 40 62 62 60 60 80 116 115 220 Greatest Overweight (x) 27 | 5 1 1 . 1 1 1 . 1 27 8 Average Overweight (x) . | . . . . 1 . . . . . . Largest Inventory Capacity 26 | 8 16 16 16 22 22 6 6 26 24 22 Average Capacity 14 | 7 12 16 16 22 6 4 6 14 23 17 Most Carried 24 | 8 15 16 16 22 21 6 6 15 24 17 Average Carried 11 | 4 11 15 14 18 6 3 5 8 21 12 Final Capacity 24 | 8 16 16 16 22 4 6 6 24 22 16 Final Carried 21 | 8 15 15 16 21 4 5 6 15 16 14 Class Distribution -------------------- 69% | Hacker-Mutant 11% | Scavenger-Mutant 9% | Hauler-Mutant 4% | Hacker-Gladiator 4% | Machinist-Mutant Dominant Class ---------------- Hacker-Mutant | -10/Materials Hacker-Mutant | -9/Materials Hacker-Mutant | -8/Materials Hauler-Mutant | -7/Factory Hacker-Mutant | -7/Waste Hacker-Mutant | -7/Factory Hacker-Mutant | -6/Factory Hacker-Mutant | -6/Extension Scavenger-Mutant | -5/Factory Hacker-Mutant | -4/Factory Resources | -11 -10 -9 -8 -7 -7 -7 -6 -6 -5 -4 ----------- Run | Scr Mat Mat Mat Fac Was Fac Fac Ext Fac Fac Matter Collected 6681 | 261 167 366 315 185 240 638 683 1494 1067 1265 Remotely 11 | . . . . . . . . 11 . . Salvage Created 10418 | . 155 511 453 724 240 1238 909 1696 1181 3311 Parts 499 | . 7 27 20 37 . 50 41 102 55 160 Haulers Intercepted 3 | . . . . . . . . 2 . 1 Recyclers Shooed 10 | . . . . 1 . 1 . 4 4 . Parts Field Recycled . | . . . . . . . . . . . Retrieved Matter . | . . . . . . . . . . . Parts Self-Destructed . | . . . . . . . . . . . Prevented . | . . . . . . . . . . . Kills | -11 -10 -9 -8 -7 -7 -7 -6 -6 -5 -4 ------- Run | Scr Mat Mat Mat Fac Was Fac Fac Ext Fac Fac Combat Hostiles Destroyed 191 | . 5 16 11 12 1 23 20 21 25 57 Melee 35 | . . . 2 . . 15 12 2 . 4 Guns 45 | . 5 6 2 2 1 5 . 6 11 7 Cannons 60 | . . 5 6 8 . 3 . 1 13 24 AOE 39 | . . 5 1 2 . . 4 11 1 15 Classes Destroyed 16 | . 2 4 1 2 1 1 . 5 . . Worker 3 | . . . . . . . . 3 . . Builder 8 | . . . . . . . . 5 1 2 Tunneler 2 | . . . . . . . . 1 . 1 Hauler 3 | . . . . . . . . 2 . 1 Recycler 2 | . . . . . . 1 . 1 . . Operator 5 | . . 1 . 1 . . . 2 . 1 Watcher 3 | . . 1 . . . . 2 . . . Swarmer 24 | . 3 . . 1 . 2 5 3 2 8 Grunt 86 | . 2 12 9 5 . 18 6 8 11 15 Brawler 5 | . . 1 . 1 . . 1 1 1 . Duelist 3 | . . . . 1 . . 1 . 1 . Sentry 19 | . . 3 1 3 . 2 3 2 1 4 Hunter 22 | . . . 1 . . . . 4 1 16 Programmer 28 | . . . . 1 . 1 4 1 7 14 Behemoth 3 | . . . . . . . . 2 1 . Compactor 1 | . . . . . 1 . . . . . Best Kill Streak 6 | . 2 3 4 3 1 4 5 6 4 4 Combat Bots Only 5 | . 2 3 4 3 1 4 5 2 4 4 Max Kills in Single Turn 3 | . 1 2 1 1 1 1 2 3 2 3 Gunslinging . | . . . . . . . . . . . Exploded 3 | . . 2 1 1 . . 2 2 1 3 Melee 1 | . . . 1 . . 1 1 1 . 1 Uniques/NPCs Destroyed . | . . . . . . . . . . . Combat | -11 -10 -9 -8 -7 -7 -7 -6 -6 -5 -4 -------- Run | Scr Mat Mat Mat Fac Was Fac Fac Ext Fac Fac Damage Taken 15433 | . 187 584 887 787 467 491 1803 2688 2036 5503 Core 2285 | . . 68 140 50 188 44 112 246 286 1151 Absorbed by Shields 594 | . . . . . . . . . . 594 Core Remaining (%) 77 | 100 100 83 74 . . 59 . 57 71 . Volleys Fired 570 | . 16 50 34 47 15 28 26 94 88 172 Largest 2 | . 2 2 2 2 2 2 1 2 2 2 Hottest 160 | . 90 103 113 160 117 92 50 97 114 123 Shots Fired 777 | . 32 79 56 74 20 43 26 134 131 182 Gun 336 | . 32 31 13 27 3 28 . 84 71 47 Cannon 304 | . . 40 21 47 3 15 . 11 60 107 Launcher 137 | . . 8 22 . 14 . 26 39 . 28 Special . | . . . . . . . . . . . Kinetic 308 | . 10 34 16 . 2 22 . 84 118 22 Thermal 193 | . 16 25 9 48 4 11 . 11 6 63 Explosive 109 | . . 8 18 . 14 . 14 27 . 28 Electromagnetic 167 | . 6 12 13 26 . 10 12 12 7 69 Robot Hit Streak 102 | . 15 47 26 43 9 27 16 22 37 102 Robot Miss Streak 3 | . 1 2 2 1 1 1 1 1 2 3 Penetration Max 2 | . . . . . . . . 2 1 . Secondary Targets 1 | . . . . . . . . . . 1 Max Gunslinging Chain 1 | . . . . . . . . . . 1 Capacitor 22 | . . . . . . . . . . 22 Shots Hit Robots 786 | . 28 66 42 67 10 74 74 125 121 179 Core Hits 434 | . 7 46 26 35 2 37 41 83 57 100 Critical Hits 65 | . . 1 . . . 3 1 28 9 23 Critical Kills 25 | . . . . . . 1 . 7 4 13 Critical Parts Destroyed 36 | . . 1 . . . 2 1 18 5 9 Melee Attacks 124 | . . . . . . 36 49 16 6 17 Impact 6 | . . . . . . . . . 6 . Slashing 109 | . . . . . . 36 49 16 . 8 Piercing 9 | . . . . . . . . . . 9 Sneak Attacks 2 | . . . . . . 1 1 . . . Combat Hostiles . | . . . . . . . . . . . Follow-up Attacks . | . . . . . . . . . . . Damage Inflicted 28271 | . 313 1417 1000 1582 923 2759 3609 3765 4544 8359 Guns 5518 | . 309 446 203 533 40 331 . 1037 1507 1112 Cannons 7676 | . . 491 308 937 55 394 . 327 1798 3366 Explosions 8945 | . . 480 425 112 828 . 1086 1796 1054 3164 Melee 6016 | . . . . . . 2034 2523 605 185 669 Ramming 116 | . 4 . 64 . . . . . . 48 Kinetic 5543 | . 58 390 232 . 55 320 . 1152 2995 341 Thermal 6013 | . 173 443 142 1083 40 298 . 270 1020 2544 Explosive 6260 | . . 432 381 . 828 . 515 1174 . 2930 Electromagnetic 4323 | . 78 152 181 499 . 107 571 564 344 1827 Impact 185 | . . . . . . . . . 185 . Slashing 5481 | . . . . . . 2034 2523 605 . 319 Piercing 350 | . . . . . . . . . . 350 Highest Corruption 21 | . 1 1 1 . 21 21 5 10 9 11 Average Corruption 7 | . 1 1 1 . 12 18 3 7 5 6 Corruption Purged 13 | . . . . . . 5 . . . 8 Effects 333 | . 6 2 2 . 23 96 10 82 23 89 Message Errors 77 | . 3 . . . 1 21 3 18 5 26 Matter Fused 57 | . . . . . 6 13 1 18 9 10 Heat Flow Errors 32 | . . . . . 1 5 2 10 2 12 Energy Discharges 34 | . 1 1 . . . 12 1 4 3 12 Parts Rejected 6 | . . . . . 1 2 . 1 . 2 Data Loss (minor) 35 | . 1 1 1 . 3 9 2 9 1 8 Data Loss (major) 8 | . . . . . 1 2 . 2 . 3 Misfires 6 | . . . . . 2 . . 1 . 3 Alerts 2 | . . . . . . 2 . . . . Misdirections 23 | . . . . . 8 14 . 1 . . Targeting Errors 44 | . 1 . 1 . . 12 1 15 3 11 Weapon Failures 9 | . . . . . . 4 . 3 . 2 Overload Shots . | . . . . . . . . . . . Overflow Damage 1508 | . . 59 40 10 . 388 331 20 303 357 Projectiles 210 | . . . . 10 . . . . 76 124 Explosions 586 | . . 59 40 . . . 37 17 223 210 Melee 712 | . . . . . . 388 294 3 4 23 Knockbacks 26 | . . 3 1 . . . . 2 19 1 Impact 4 | . . . . . . . . . 3 1 Kinetic 21 | . . 3 1 . . . . 2 15 . Secondary 1 | . . . . . . . . . 1 . Self-Inflicted Damage 1569 | . . 40 74 56 231 . 176 157 238 597 Shots 69 | . . 4 8 2 8 . 12 10 5 20 Rammed 28 | . 1 . 17 . . . . . . 10 Targets Rammed 30 | . 1 . 18 . . . . . . 11 Kicked . | . . . . . . . . . . . Crushed 2 | . . . 1 . . . . . . 1 Highest Temperature 743 | . 296 148 315 27 157 246 263 302 314 743 Average Temperature 129 | . 110 60 117 8 53 81 59 90 79 193 Received Heat Transfer 4195 | . 114 372 576 270 . 378 426 624 714 721 Effects 38 | . . . . . . . . 1 2 35 Shutdowns 4 | . . . . . . . . . . 4 Energy Bleed 7 | . . . . . . . . 1 . 6 Interference 8 | . . . . . . . . . . 8 Matter Decay 4 | . . . . . . . . . 2 2 Short Circuit 8 | . . . . . . . . . . 8 Damage (minor) 3 | . . . . . . . . . . 3 Damage (core) 4 | . . . . . . . . . . 4 Siege Activations . | . . . . . . . . . . . Robots Corrupted 11 | . . . . . . . 4 1 . 6 Combat Hostiles 11 | . . . . . . . 4 1 . 6 Parts Fried 25 | . . . . 2 . . 4 5 . 14 Impact Corruptions 1 | . . . . . . . . . 1 . Robots Melted 1 | . . . . . . . . . . 1 Combat Hostiles 1 | . . . . . . . . . . 1 Parts Melted 14 | . 1 . . 6 . . . 1 . 6 Heat Transferred 7360 | . 518 639 259 1975 74 407 . 457 735 2296 Parts Sabotaged . | . . . . . . . . . . . Parts Stolen . | . . . . . . . . . . . Parts Stripped . | . . . . . . . . . . . Power Chain Reactions 4 | . . 1 . 2 . . . 1 . . Missiles Intercepted . | . . . . . . . . . . . Alert | -11 -10 -9 -8 -7 -7 -7 -6 -6 -5 -4 ------- Run | Scr Mat Mat Mat Fac Was Fac Fac Ext Fac Fac Peak Influence 452 | . 80 202 237 140 56 330 257 353 404 452 Average Influence 98 | . 42 72 126 86 16 114 76 112 109 125 Maximum Alert Level 2 | . . 1 1 . . 1 1 1 2 2 Low Security (%) 91 | 100 100 96 90 100 100 89 98 91 91 80 Level 1 7 | . . 3 9 . . 10 1 8 7 16 Level 2 . | . . . . . . . . . 1 2 Level 3 . | . . . . . . . . . . . Level 4 . | . . . . . . . . . . . Level 5 . | . . . . . . . . . . . High Security . | . . . . . . . . . . . Max Security . | . . . . . . . . . . . Squads Dispatched 50 | . . 3 3 4 . 7 3 8 5 17 Investigation 18 | . . 1 2 2 . 3 . 3 2 5 Extermination 16 | . . . . 1 . 1 3 . 3 8 Reinforcement 16 | . . 2 1 1 . 3 . 5 . 4 Assault . | . . . . . . . . . . . Garrison . | . . . . . . . . . . . Intercept . | . . . . . . . . . . . Construction Impeded 6 | . . . . . . . . 4 . 2 Haulers Reinforced 1 | . . . . . . . . . . 1 Stealth | -11 -10 -9 -8 -7 -7 -7 -6 -6 -5 -4 --------- Run | Scr Mat Mat Mat Fac Was Fac Fac Ext Fac Fac Distress Signals 10 | . . 2 . 1 . 1 . 4 1 1 Communications Jammed 24 | . . 21 2 1 . . . . . . Distress Signals 22 | . . 21 . 1 . . . . . . Times Spotted 342 | . 13 31 15 16 12 33 39 54 43 86 Peak Tracking Total 6 | . 3 6 5 3 5 3 6 6 5 5 Tactical Retreats 48 | . 1 1 1 1 2 1 6 14 12 9 Traps | -11 -10 -9 -8 -7 -7 -7 -6 -6 -5 -4 ------- Run | Scr Mat Mat Mat Fac Was Fac Fac Ext Fac Fac Traps Triggered 12 | . 3 3 2 2 . . 2 . . . Indirectly . | . . . . . . . . . . . Trap Hack Attempts . | . . . . . . . . . . . Triggered . | . . . . . . . . . . . Disarmed . | . . . . . . . . . . . Reprogrammed . | . . . . . . . . . . . Reused . | . . . . . . . . . . . Traps Extracted . | . . . . . . . . . . . Installed . | . . . . . . . . . . . Triggered 1 | . . . 1 . . . . . . . Machines | -11 -10 -9 -8 -7 -7 -7 -6 -6 -5 -4 ---------- Run | Scr Mat Mat Mat Fac Was Fac Fac Ext Fac Fac Machines Disabled 49 | . . 1 4 1 . . 2 3 24 14 Max in Single Turn 17 | . . 1 1 1 . . 2 1 17 4 Energy Cycler 1 | . . . . . . . . 1 . . Machines Sabotaged . | . . . . . . . . . . . Garrisons Compromised . | . . . . . . . . . . . Overloaded Fab Kills . | . . . . . . . . . . . Fab Network Shutdowns 1 | . . . . . . . . . . 1 Hacking | -11 -10 -9 -8 -7 -7 -7 -6 -6 -5 -4 --------- Run | Scr Mat Mat Mat Fac Was Fac Fac Ext Fac Fac Machines Accessed 37 | . . 3 4 4 . 3 1 12 2 8 Terminals 21 | . . 1 2 2 . 1 . 12 . 3 Fabricators 6 | . . . . 1 . 2 1 . . 2 Repair Stations 6 | . . 1 1 1 . . . . 1 2 Recycling Units . | . . . . . . . . . . . Scanalyzers 4 | . . 1 1 . . . . . 1 1 Garrison Access . | . . . . . . . . . . . Total Hacks 105 | . . 13 9 13 . 12 2 23 11 22 Successful 75 | . . 11 6 6 . 6 2 16 11 17 Failed 30 | . . 2 3 7 . 6 . 7 . 5 Catastrophic 5 | . . 1 . 3 . 1 . . . . Database Lockouts . | . . . . . . . . . . . Manual 6 | . . . . 3 . 3 . . . . Terminals 40 | . . 2 2 6 . 4 . 23 . 3 Fabricators 22 | . . . . 2 . 8 2 . . 10 Repair Stations 22 | . . 5 3 5 . . . . 3 6 Recycling Units . | . . . . . . . . . . . Scanalyzers 21 | . . 6 4 . . . . . 8 3 Garrison Access . | . . . . . . . . . . . Terminal Hacks 23 | . . . 2 . . 2 . 16 . 3 Record 1 | . . . . . . . . 1 . . Part Schematic 6 | . . . . . . . . 5 . 1 Robot Analysis 1 | . . . 1 . . . . . . . Prototype ID Bank 2 | . . . . . . . . 2 . . Open Door 6 | . . . . . . . . 6 . . Level Access Points 1 | . . . . . . . . . . 1 Machine Index 1 | . . . . . . . . . . 1 Fabricator Index 2 | . . . . . . 1 . 1 . . Scanalyzer Index 1 | . . . 1 . . . . . . . Recall Extermination 1 | . . . . . . 1 . . . . Registered Prototypes 1 | . . . . . . . . 1 . . Fabricator Hacks 16 | . . . . 2 . 4 2 . . 8 Load Schematic 6 | . . . . 1 . 2 1 . . 2 Build 10 | . . . . 1 . 2 1 . . 6 Repair Station Hacks 18 | . . 5 2 4 . . . . 3 4 Scan Component 10 | . . 3 1 2 . . . . 2 2 Repair 8 | . . 2 1 2 . . . . 1 2 Recycling Unit Hacks . | . . . . . . . . . . . Scanalyzer 18 | . . 6 2 . . . . . 8 2 Insert Component 11 | . . 3 2 . . . . . 5 1 Analyze 7 | . . 3 . . . . . . 3 1 Garrison Access Hacks . | . . . . . . . . . . . Unauthorized Hacks . | . . . . . . . . . . . Terminals . | . . . . . . . . . . . Fabricators . | . . . . . . . . . . . Repair Stations . | . . . . . . . . . . . Recycling Units . | . . . . . . . . . . . Scanalyzers . | . . . . . . . . . . . Garrison Access . | . . . . . . . . . . . Data Cores Recovered 2 | . . . . . . . . 1 . 1 Used . | . . . . . . . . . . . Hacking Detections 24 | . . 2 3 2 . 3 1 4 2 7 Full Trace Events 18 | . . 1 2 2 . 3 . 3 2 5 Feedback Events 1 | . . . . . . . . . 1 . Corruption 1 | . . . . . . . . . 1 . Feedback Blocked . | . . . . . . . . . . . Robot Schematics Acquired . | . . . . . . . . . . . Robots Built . | . . . . . . . . . . . Matter . | . . . . . . . . . . . Time . | . . . . . . . . . . . Total Robot Build Rating . | . . . . . . . . . . . Part Schematics Acquired 13 | . . 3 . . . . . 5 3 2 Parts Built 16 | . . . . 2 . 4 2 . . 8 Matter 1608 | . . . . 146 . 292 102 . . 1068 Time 634 | . . . . 36 . 72 51 . . 475 Total Part Build Rating 88 | . . . . 6 . 12 2 . . 68 Parts Repaired 7 | . . 2 1 2 . . . . 1 1 Time 200 | . . 58 19 29 . . . . 25 69 Parts Recycled . | . . . . . . . . . . . Recycled Matter . | . . . . . . . . . . . Retrieved Matter . | . . . . . . . . . . . Retrieved Components . | . . . . . . . . . . . Parts Scanalyzed 8 | . . 3 1 . . . . . 3 1 Part Schematics Acquired 7 | . . 3 . . . . . . 3 1 Parts Damaged 1 | . . . . . . . . . 1 . Bothacking | -11 -10 -9 -8 -7 -7 -7 -6 -6 -5 -4 ------------ Run | Scr Mat Mat Mat Fac Was Fac Fac Ext Fac Fac Used RIF Installer . | . . . . . . . . . . . Robots Hacked . | . . . . . . . . . . . Non-combat . | . . . . . . . . . . . Combat . | . . . . . . . . . . . Robot Hacks Applied . | . . . . . . . . . . . Relay Couplers Released . | . . . . . . . . . . . Robots Rewired . | . . . . . . . . . . . Allies Hacked . | . . . . . . . . . . . Hacks Repelled . | . . . . . . . . . . . Allies | -11 -10 -9 -8 -7 -7 -7 -6 -6 -5 -4 -------- Run | Scr Mat Mat Mat Fac Was Fac Fac Ext Fac Fac Total Allies 5 | . . . . . . . . 5 . . Largest Group 5 | . . . . . . . . 5 . . Highest-Rated Group 287 | . . . . . . . . 287 . . Highest-Rated Ally 156 | . . . . . . . . 156 . . Total Orders . | . . . . . . . . . . . Ally Attacks 75 | . . . . . . . . 75 . . Total Damage 1498 | . . . . . . . . 1498 . . Kills 13 | . . . . . . . . 13 . . Allies Corrupted . | . . . . . . . . . . . Allies Melted . | . . . . . . . . . . . Intel | -11 -10 -9 -8 -7 -7 -7 -6 -6 -5 -4 ------- Run | Scr Mat Mat Mat Fac Was Fac Fac Ext Fac Fac Robot Analysis Total 1 | . . . 1 . . . . . . . Derelict Logs Recovered . | . . . . . . . . . . . Drone Launches . | . . . . . . . . . . . Drone Recoveries . | . . . . . . . . . . . Exploration | -11 -10 -9 -8 -7 -7 -7 -6 -6 -5 -4 ------------- Run | Scr Mat Mat Mat Fac Was Fac Fac Ext Fac Fac Turns Passed 15596 | 84 1001 1120 718 1333 375 1568 2058 1993 1771 3575 Spaces Moved 7219 | 40 573 467 322 595 409 675 940 868 790 1540 Core 370 | 15 . . . . 353 . . . 2 . Treads 5874 | 20 573 467 322 595 56 154 940 868 713 1166 Legs 600 | 5 . . . . . 521 . . . 74 Wheels . | . . . . . . . . . . . Hover 375 | . . . . . . . . . 75 300 Flight . | . . . . . . . . . . . Fastest Speed 40 | 50 160 160 161 181 50 120 170 160 112 40 Average Speed 157 | 160 160 189 165 181 67 135 170 161 165 154 Slowest Speed 1400 | 300 180 190 170 190 190 190 170 180 1400 680 Overloaded Moves . | . . . . . . . . . . . Propulsion Burnouts . | . . . . . . . . . . . Robots Hopped . | . . . . . . . . . . . Cave-ins Triggered 1 | . . . . . . . . . . 1 Exploration Rate (%) 42 | 4 90 43 34 17 100 20 23 86 18 27 Regions Visited 10 Branch Regions 1 Pre-discovered Areas . | . . . . . . . . . . . Known Exits Taken 8 | 1 1 1 1 . . 1 1 1 1 . Unknown Exits Taken . | . . . . . . . . . . . Scrap Searched . | . . . . . . . . . . . Spaces Dug 270 | . . . 32 . 119 . . 84 . 35 Terrain Destroyed 960 | . . 32 66 8 154 . 110 235 89 266 Melee . | . . . . . . . . . . . Projectile 21 | . . . . 1 1 . . . 10 9 AOE 939 | . . 32 66 7 153 . 110 235 79 257 Actions | -11 -10 -9 -8 -7 -7 -7 -6 -6 -5 -4 --------- Run | Scr Mat Mat Mat Fac Was Fac Fac Ext Fac Fac Total 10461 | 60 626 623 438 776 487 1222 1283 1279 1113 2554 Wait 1743 | . 8 75 30 82 41 409 189 206 131 572 Move 7210 | 39 572 466 321 595 408 674 939 867 789 1540 Hop . | . . . . . . . . . . . Pick Up 261 | 14 15 12 14 20 4 24 25 29 28 76 Fast Attach 41 | . 1 1 . 2 4 10 7 2 7 7 Attach 168 | 6 2 4 6 6 6 14 18 18 19 69 Detach 22 | . . . . . . . 2 . 1 19 Swap 127 | 1 5 8 9 11 3 7 2 34 19 28 Drop 165 | . 6 7 6 13 6 20 26 13 25 43 Fire 570 | . 16 50 34 47 15 28 26 94 88 172 Melee 124 | . . . . . . 36 49 16 6 17 Ram . | . . . . . . . . . . . Kick . | . . . . . . . . . . . Crush 30 | . 1 . 18 . . . . . . 11 Escape Stasis . | . . . . . . . . . . . Rewire . | . . . . . . . . . . . Trap . | . . . . . . . . . . . Miscellaneous . | . . . . . . . . . . . Route ------- -11/Scrapyard -10/Materials (discovered 5 exits: *Mat x3 / *Min x2) -9/Materials (discovered 3 exits: *Mat x2 / *Min) -8/Materials (discovered 2 exits: *Fac x2) -7/Factory -7/Waste -7/Factory (discovered 3 exits: *Fac x3) -6/Factory (discovered 3 exits: *Low x2 / *Ext) -6/Extension (discovered 3 exits: *Fac x2 / *Cet) -5/Factory -4/Factory (discovered 5 exits: *Res x4 / *Upp) History --------- Turn | Location | Event 60 | -11/Scrapyard | Identified exit to Materials 60 | -11/Scrapyard | Discovered exit to Materials (range 13) 85 | -11/Scrapyard | Entered Materials 85 | -10/Materials | Evolved 1 slot: Utility x1 315 | -10/Materials | Build established: Hacker-Mutant 321 | -10/Materials | Identified exit to Mines 321 | -10/Materials | Discovered exit to Mines (range 16) 450 | -10/Materials | Identified exit to Materials 450 | -10/Materials | Discovered exit to Materials (range 11) 647 | -10/Materials | Discovered exit to Materials (range 8) 767 | -10/Materials | Discovered exit to Mines (range 6) 853 | -10/Materials | Discovered exit to Materials (range 3) 1086 | -10/Materials | Entered another Materials area 1086 | -9/Materials | Evolved 2 slots: Utility x2 1366 | -9/Materials | Identified exit to Materials 1366 | -9/Materials | Discovered exit to Materials (range 13) 1532 | -9/Materials | Repaired Lgt. Ion Engine 1567 | -9/Materials | Repaired Particle Cannon 1678 | -9/Materials | Identified exit to Mines 1678 | -9/Materials | Discovered exit to Mines (range 12) 1806 | -9/Materials | Discovered exit to Materials (range 3) 2206 | -9/Materials | Entered another Materials area 2206 | -8/Materials | Evolved 2 slots: Propulsion x1, Utility x1 2465 | -8/Materials | Identified exit to Factory 2465 | -8/Materials | Discovered exit to Factory (range 16) 2592 | -8/Materials | Repaired Arm. Treads 2829 | -8/Materials | Discovered exit to Factory (range 11) 2924 | -8/Materials | Entered Factory 2924 | -7/Factory | Evolved 2 slots: Utility x2 2989 | -7/Factory | Repaired Hrd. Light Armor Plating 3004 | -7/Factory | Repaired Sensor Array 3201 | -7/Factory | Build established: Hauler-Mutant 3945 | -7/Factory | Fabricated Arm. Treads (x2) 4189 | -7/Factory | Identified exit to Factory 4189 | -7/Factory | Discovered exit to Factory (range 14) 4257 | -7/Factory | Sucked down chute 4257 | -7/Factory | Entered Waste 4272 | -7/Waste | EMP discharged 4297 | -7/Waste | Spotted C-40 Crusher 4311 | -7/Waste | Crushed by Compactor (1 part destroyed, 2 dropped) 4314 | -7/Waste | Crushed by Compactor (1 part destroyed, 1 dropped) 4317 | -7/Waste | Crushed by Compactor (1 part destroyed, 2 dropped) 4320 | -7/Waste | Crushed by Compactor (1 part destroyed, 1 dropped) 4323 | -7/Waste | Crushed by Compactor (1 part destroyed, 1 dropped) 4325 | -7/Waste | Destroyed C-40 Crusher 4330 | -7/Waste | Spotted C-40 Crusher 4339 | -7/Waste | Spotted C-40 Crusher 4354 | -7/Waste | Lost 5 parts (3u2w) 4356 | -7/Waste | Spotted C-40 Crusher 4372 | -7/Waste | EMP discharged 4372 | -7/Waste | System corruption reached 10% 4377 | -7/Waste | Spotted C-40 Crusher 4399 | -7/Waste | Spotted C-40 Crusher 4449 | -7/Waste | Identified exit to Factory 4449 | -7/Waste | Discovered exit to Factory (range 12) 4472 | -7/Waste | EMP discharged 4506 | -7/Waste | Crushed by Compactor (1 part destroyed, 2 dropped) 4572 | -7/Waste | EMP discharged 4577 | -7/Waste | Build established: Hacker-Mutant 4601 | -7/Waste | Crushed by Compactor (1 part destroyed, 1 dropped) 4632 | -7/Waste | Entered Factory 5097 | -7/Factory | Discovered exit to Factory (range 13) 5493 | -7/Factory | Discovered exit to Factory (range 13) 5959 | -7/Factory | Fabricated Arm. Treads (x2) 6003 | -7/Factory | Fabricated Arm. Treads (x2) 6102 | -7/Factory | Discovered exit to Factory (range 4) 6200 | -7/Factory | Entered another Factory area 6200 | -6/Factory | Evolved 2 slots: Propulsion x1, Utility x1 6546 | -6/Factory | Identified exit to Lower Caves 6546 | -6/Factory | Discovered exit to Lower Caves (range 16) 7216 | -6/Factory | Build established: Hacker-Gladiator 7926 | -6/Factory | Fabricated Hcp. Battery (x2) 8038 | -6/Factory | Discovered exit to Lower Caves (range 15) 8199 | -6/Factory | Identified exit to Extension 8199 | -6/Factory | Discovered exit to Extension (range 16) 8233 | -6/Factory | Build established: Machinist-Mutant 8258 | -6/Factory | Entered Extension 8422 | -6/Extension | Rescued A7 8597 | -6/Extension | Rescued a captive Derelict 8598 | -6/Extension | Rescued a captive Derelict 8674 | -6/Extension | Build established: Hacker-Mutant 8714 | -6/Extension | Rescued a captive Derelict 8715 | -6/Extension | Rescued a captive Derelict 8791 | -6/Extension | Spotted B-75 Beast 9066 | -6/Extension | Energy Cycler disabled 9067 | -6/Extension | Rescued a captive Derelict 9069 | -6/Extension | Rescued a captive Derelict 9107 | -6/Extension | Extracted ID and sensor layout for unrecognized location from A7's data core 9308 | -6/Extension | Disrupted transfer network 9376 | -6/Extension | System corruption reached 10% 9655 | -6/Extension | Identified exit to Factory 9655 | -6/Extension | Discovered exit to Factory (range 10) 9656 | -6/Extension | Identified exit to Cetus 9656 | -6/Extension | Discovered exit to Cetus (range 6) 9809 | -6/Extension | Spotted B-75 Beast 9995 | -6/Extension | Destroyed B-75 Beast 10008 | -6/Extension | Lost 9 parts (1p3n3u2w) 10062 | -6/Extension | Discovered exit to Factory (range 16) 10125 | -6/Extension | Destroyed B-75 Beast 10251 | -6/Extension | Entered Factory 10251 | -5/Factory | Evolved 2 slots: Power x1, Utility x1 10388 | -5/Factory | Build established: Scavenger-Mutant 10581 | -5/Factory | Spotted B-75 Beast 10604 | -5/Factory | Destroyed B-75 Beast 10803 | -5/Factory | Build established: Hacker-Mutant 11254 | -5/Factory | Repaired Lgt. Angular Momentum Engine 11497 | -5/Factory | Identified exit to Factory 11497 | -5/Factory | Discovered exit to Factory (range 8) 11601 | -5/Factory | Build established: Scavenger-Mutant 11880 | -5/Factory | Lost 10 parts (2p5n2u1w) 12022 | -5/Factory | Entered another Factory area 12022 | -4/Factory | Evolved 2 slots: Propulsion x2 12146 | -4/Factory | Lost 6 parts (2p3u1w) 12360 | -4/Factory | Core integrity fell below 50% 12575 | -4/Factory | Crushed by falling debris 12623 | -4/Factory | Identified exit to Research 12656 | -4/Factory | Lost 4 parts (2n2u) 13116 | -4/Factory | Build established: Hacker-Mutant 13271 | -4/Factory | Core integrity fell below 20% 13624 | -4/Factory | Repaired Lrg. Storage Unit 13730 | -4/Factory | Found Quantum Capacitor 13960 | -4/Factory | Found Prototype Launcher 13961 | -4/Factory | Identified Tesla Bomb Launcher 14122 | -4/Factory | System corruption reached 10% 14493 | -4/Factory | Lost 3 parts (3u) 14580 | -4/Factory | Identified exit to Upper Caves 14580 | -4/Factory | Discovered exit to Upper Caves (range 8) 14806 | -4/Factory | Fabricated Quantum Capacitor? 14841 | -4/Factory | Lost 3 parts (3u) 15124 | -4/Factory | Fabricated Cmb. Linear Gravjet? 15320 | -4/Factory | Fabricated Cmb. Linear Gravjet? 15499 | -4/Factory | Local fabrication network quarantined 15512 | -4/Factory | Fabricated Cmb. Linear Gravjet (x2) 15597 | -4/Factory | Destroyed by G-67 Veteran with Plasma Rifle Last Messages --------------- 15410_ System corrupted: Component data lost. 15499_ ALERT: Fabrication network compromised, local systems quarantined. 15506_ System corrupted: Energy discharge (-81). 15512_ Fabricator completes Cmb. Linear Gravjet. 15512_ Acquired Cmb. Linear Gravjet. 15516_ Dropped Arm. Medium Treads. 15516_ Dropped Adv. Medium Treads. 15517_ Connecting with Fabricator... 15517_ ALERT: Suspicious activity at Fabricator F003. Dispatching Investigation squad. 15522_ ALERT: Rogue bot located, Programmers report to Factory Zone 8O. 15529_ System corrupted: Heat flow error (+291). 15553_ Acquired 25 matter. 15562_ Acquired 35 matter. 15587_ P-70 Sage destroyed. 15590_ System corrupted: Matter fused (-7). 15591_ P-70 Sage suffers critical hit. 15591_ Destroyed Imp. Heat Sink. 15593_ Destroyed Antigrav System. 15595_ Destroyed Tesla Rifle. Map ----- +----------------------------------------------------+ | ?????????????????????????????????????????????????? | | ?????????????????????????????????????????????????? | | ?????????????????????????????????????????????????? | | ?????????????????????????????????????????????????? | | ???????????????????????????????????????????????? | | ""???????????????????????????????????????????????? | | "????????????????????????????????????????????????? | | ?????????????????????????????????????????????????? | | ???????????????????????? ???????????????????????? | | ??????????????????????# ???????????????????????? | | ??????????????????????+ ???????????????????????? | | ??????????????????????# ???????????????????????? | | ??????????????????????# #??????????????????????? | | ??????????????????????# #??????????????????????? | | ??????????????????????# #??????????????????????? | | ??????????????????????# #??????????????????????? | | ????????????????????### ###????????????????????? | | ????????????????????# ############?????????? | | ???????????????###### ?????????? | | ???????????????# T" ????????? | | ???????????????# " ?????????? | | ????????????????? ??????????? | | ????????????????????# ???????????????? | | ???????########?????# !* #????????????????????? | | ???????? ????#####p####????????????????????? | | ????????? ????# g!%@ #????????????????????? | | ?????????? ????#! """" #????????????????????? | | ??????????# #????#p """" #????????????????????? | | ??????????# #????# """" #????????????????????? | | ??????????# ###??#g """" #????????????????????? | | ??????????# ######g """" #????????????????????? | | ??????????# %[ + """" #????????????????????? | | ??????????# %### #????????????????????? | | ??????????# ### ! #????????????????????? | | ??????????# #?##########????????????????????? | | ??????????# #???????????????????????????????? | | ??????????# #???????????????????????????????? | | ????####### #???????????????????????????????? | | ##### #???????????????????????????????? | | ### #???????????????????????????????? | | ### #???????????????????????????????? | | ####???????????????????????????????? | | ##########+#######?????????????????????????????? | | #???# #?????????????????????????????? | | ###???# """ """ #?????????????????????????????? | | ??????# """ """ #?????????????????????????????? | | ??????# """ """ #?????????????????????????????? | | ??????# #?????????????????????????????? | | ??????#############??????????????????????????????? | | | +----------------------------------------------------+ Best States ------------- Heat Dissipation 70 Coolant Potential 65 Energy Generation 37 Energy Capacity 750 Matter Stores 450 Matter Capacity 450 Sight Range 16 Robot Scan Range 16 Terrain Scan Density 210 Jamming Range 8 Power Amplification 20 Base Temperature (-) 200 Armor Coverage 1200 Resistance: KI 65 Resistance: TH 50 Resistance: EX 60 Resistance: EM 35 Resistance: I 35 Resistance: S 35 Resistance: P 35 Reclamation Efficiency 25 Weapon Cycling 15 Phase Shifting 10 Evasion (%) 57 Targeting Accuracy 6 Melee Accuracy 8 Launcher Accuracy 20 Target Analysis 8 Recoil Reduction 6 Particle Charging 25 Kinecelleration 40 Salvage Targeting 3 Offensive Hacking 30 Defensive Hacking 14 Item Schematics ----------------- Arm. Treads | -9/Materials | Scanalyzed Grenade Launcher | -9/Materials | Scanalyzed Hcp. Battery | -9/Materials | Scanalyzed Cmb. Gravmag System | -6/Extension | Hacked Point Defense System | -6/Extension | Hacked Imp. Thermal Generator | -6/Extension | Hacked Imp. Phase Shifter | -6/Extension | Hacked HERF Cannon | -6/Extension | Hacked Arm. Medium Treads | -5/Factory | Scanalyzed Lyr. Medium Armor Plating | -5/Factory | Scanalyzed Launcher Guidance Computer | -5/Factory | Scanalyzed Cmb. Linear Gravjet | -4/Factory | Hacked Quantum Capacitor | -4/Factory | Scanalyzed Robot Schematics ------------------ None Fabricated ------------ Arm. Treads | x2 | -7/Factory Arm. Treads | x2 | -7/Factory Arm. Treads | x2 | -7/Factory Hcp. Battery | x2 | -6/Factory Quantum Capacitor | x2 | -4/Factory Cmb. Linear Gravjet | x2 | -4/Factory Cmb. Linear Gravjet | x2 | -4/Factory Cmb. Linear Gravjet | x2 | -4/Factory Alien Tech Used ----------------- None Achievements -------------- Prison Break Challenges ------------ None Game ------ Seed GatlingRefineryWheel Manual? 0 Play Time 02:58:34 Cumulative 123.3 hours Start 2020.02.15 @ 12:41:36 End 2020.02.15 @ 16:05:46 Sessions 1 Manual Loads 0 Difficulty Explorer Special Mode None Game No. 26 Rogue 1 Adventurer 0 Explorer 25 Win Type - Total 1 Types 0/0/1/0/0/0/0 Lore% 24 Gallery% 57 Achievement% 34 Wizard Run 0 Options --------- ASCII 0 Keyboard 0 Movement Mouse Keybinds 0 Fullscreen 1 Font 32/SmallcapsGlow Map View 76x50 Tactical HUD 1 Map Filters NONE Filters NONE Steam 1 RUN: 12dbf63b-c17f-49c6-a21f-b3131fea5359